Cogmind - Beta 16 @@@ ROGUE MODE // 2026.01.18 @ 17:11:19 Player: k1ll3rb0t Result: Escaped! Performance ------------- Evolutions (9) 4500 Regions Visited (28) 5600 Robots Destroyed (647) 3235 Value Destroyed (35378) 35378 Prototype IDs (50) 1000 Alien Tech Used (0) 0 Bonus (20311) 20311 TOTAL SCORE: 70024 Bonus ------- Triggered High Security 500 High Alert Combat Kills 13745 Follower Combat Kills 246 Entered Garrisons 600 Aligned with FarCom 300 Met Data Miner 300 Acquired ECA 300 Met Warlord at Base 500 MAIN.C Attacked Warlord 500 Scanned by Researcher 500 Win 3000 Friendly Fire -180 Cogmind --------- Core Integrity 153/1600 Matter 638/800 Energy 431/440 System Corruption 88% Temperature Cool (-189) Movement Walking (135) Location To Epsilon Eridani Parts ------- > --- POWER (2) -------- Quantum Reactor Light Quantum Reactor > --- PROPULSION (7) --- Centrium Leg Heavy Shield Leg Heavy Shield Leg Heavy Shield Leg > --- UTILITY (12) ----- Advanced Cryofiber Web Advanced Heat Sink Advanced Heat Sink Advanced Heat Sink Huge Storage Unit Experimental Matter Compressor Machine Analyzer Enhanced Optical Array Advanced Signal Interpreter Advanced Terrain Scanner Core Analyzer Graphene Brace > --- WEAPON (4) ------- Enhanced Nova Cannon Heavy Linear Accelerator Vortex Lance > --- INVENTORY (25) --- Light Particle Reactor Biometal Heavy Treads Centrium Leg Centrium Leg Centrium Leg Centrium Leg Centrium Leg Centrium Leg Antigrav Array Antigrav Array Antigrav Array Advanced Power Amplifier Superbattery (1500) Experimental Matter Compressor (500) Enhanced Quantum Rifle Enhanced Quantum Rifle Heavy Linear Accelerator Gamma Bomb Array Point Singularity Launcher Phasing Sabre Peak State ------------ > --- POWER ------------ Reinforced Antimatter Reactor Quantum Reactor > --- PROPULSION ------- Biometal Medium Treads Biometal Heavy Treads Biometal Heavy Treads Advanced Heavy Siege Treads > --- UTILITY ---------- Advanced Cryofiber Web Advanced Cooling System Advanced Cooling System Huge Storage Unit Enhanced Optical Array Advanced Signal Interpreter Core Analyzer Improved Transmission Jammer Centrium Medium Armor Plating Centrium Medium Armor Plating Graphene Brace Advanced Force Field > --- WEAPON ----------- Enhanced Nova Cannon Enhanced Nova Cannon Hypervelocity Mass Driver Point Singularity Launcher > --- INVENTORY -------- Particle Reactor Enhanced Armored Heavy Treads Advanced Heavy Siege Treads Advanced Heavy Siege Treads Experimental Coolant Injector Superbattery Experimental Matter Compressor Advanced Sensor Array Thermal Barrier Advanced Force Field Advanced Hacking Suite Long-range Tractor Beam Cooled Proton Cannon Enhanced Nova Cannon Linear Accelerator Enhanced Hardcell Cannon Enhanced Hardcell Cannon Enhanced Hardcell Cannon Enhanced Gamma Bomb Array Fusion Bomb Launcher Phasing Sabre Vortex Lance [Rating: 207] Favorites ----------- Power Quantum Reactor Engine Improved Ion Engine Power Core Fission Core Reactor Quantum Reactor Propulsion Improved Medium Treads Treads Improved Medium Treads Leg Centrium Leg Wheel Wheel Hover Unit Antigrav System Flight Unit Improved Q-thruster Utility Huge Storage Unit Device Advanced Heat Sink Storage Huge Storage Unit Processor Advanced Targeting Computer Hackware System Mapper Protection Centrium Medium Armor Plating Weapon Gauss Rifle Energy Gun EM Pulse Gun Energy Cannon Enhanced Nova Cannon Ballistic Gun Gauss Rifle Ballistic Cannon Gauss Cannon Launcher Enhanced Gamma Bomb Array Special Weapon Mining Laser Impact Weapon Mace Slashing Weapon Power Sword Piercing Weapon Vortex Lance Build | -11 -10 -9 -9 -9 -8 -8 -8 -8 -8 -8 -8 -7 -7 -7 -7 -6 -6 -5 -5 -5 -5 -4 -4 -4 -4 -3 -2 -1 ------- Run | Yrd Mat Mat Min Exi Min Mat Gar Mat Gar Mat Gar Fac Low Low Dat Pro Fac Fac Upp Upp War Pro Fac Arm Lab Res Res Acc Slots Evolved 18 | . . 2 . . . 2 . . . . . 2 . . . . 2 2 . . . . 2 . . 2 2 2 Power 1 | . . . . . . . . . . . . . . . . . . . . . . . 1 . . . . . Propulsion 5 | . . 1 . . . . . . . . . 2 . . . . . . . . . . 1 . . 1 . . Utility 10 | . . 1 . . . 1 . . . . . . . . . . 2 2 . . . . . . . 1 2 1 Weapon 2 | . . . . . . 1 . . . . . . . . . . . . . . . . . . . . . 1 Parts Attached 450 | 9 17 14 7 5 1 8 18 3 8 5 10 17 2 . . . 35 30 8 10 15 1 18 50 1 49 41 68 Power 55 | 1 2 1 . . . 1 2 . 2 . 1 2 1 . . . 3 2 1 2 . . 2 6 . 7 10 9 Engine 14 | 1 2 1 . . . 1 2 . 2 . . 1 1 . . . 1 . . 1 . . 1 . . . . . Core 8 | . . . . . . . . . . . 1 1 . . . . 2 1 1 1 . . . . . 1 . . Reactor 33 | . . . . . . . . . . . . . . . . . . 1 . . . . 1 6 . 6 10 9 Propulsion 117 | 4 3 7 3 . . 3 7 2 1 2 2 4 . . . . 6 7 . 3 2 . 4 18 . 16 9 14 Treads 54 | . 2 . 3 . . 2 7 . 1 2 2 3 . . . . 6 7 . 3 2 . 4 . . 1 4 5 Leg 33 | 2 . . . . . . . . . . . . . . . . . . . . . . . 11 . 11 5 4 Wheel 28 | 2 1 7 . . . 1 . 2 . . . 1 . . . . . . . . . . . 6 . 4 . 4 Hover 1 | . . . . . . . . . . . . . . . . . . . . . . . . 1 . . . . Flight 1 | . . . . . . . . . . . . . . . . . . . . . . . . . . . . 1 Utility 160 | 2 4 4 4 1 . 3 5 1 2 1 5 7 . . . . 15 9 5 3 9 . 8 11 1 20 14 26 Device 86 | 1 1 1 2 . . 1 1 . . . 2 3 . . . . 11 1 3 2 6 . 6 7 1 12 9 16 Storage 13 | 1 3 1 . 1 . 1 . . . . . . . . . . . 2 . . 1 . 1 . . 2 . . Processor 17 | . . . . . . 1 . 1 . . . . . . . . 2 2 1 . . . . 1 . 1 4 4 Hackware 5 | . . . . . . . . . . . . 1 . . . . 1 . . . 1 . . . . 1 . 1 Protection 39 | . . 2 2 . . . 4 . 2 1 3 3 . . . . 1 4 1 1 1 . 1 3 . 4 1 5 Artifact . | . . . . . . . . . . . . . . . . . . . . . . . . . . . . . Weapon 118 | 2 8 2 . 4 1 1 4 . 3 2 2 4 1 . . . 11 12 2 2 4 1 4 15 . 6 8 19 Energy Gun 6 | 1 2 . . . . . . . . 1 . . . . . . . . . . . . . . . . . 2 Energy Cannon 27 | . 1 . . 1 . 1 1 . . 1 . . . . . . 3 2 1 . 2 . 1 3 . 1 2 7 Ballistic Gun 29 | 1 . 2 . 2 . . 2 . 2 . 2 2 . . . . 1 4 1 1 . . 1 4 . 1 2 1 Ballistic Cannon 29 | . 3 . . . . . . . . . . 2 1 . . . 7 3 . . . . 2 3 . 1 2 5 Launcher 12 | . . . . . 1 . 1 . 1 . . . . . . . . 1 . . 1 1 . 3 . . . 3 Special Weapon 1 | . 1 . . . . . . . . . . . . . . . . . . . . . . . . . . . Impact Weapon 1 | . 1 . . . . . . . . . . . . . . . . . . . . . . . . . . . Slashing Weapon 7 | . . . . 1 . . . . . . . . . . . . . 1 . 1 . . . 1 . 2 . 1 Piercing Weapon 6 | . . . . . . . . . . . . . . . . . . 1 . . 1 . . 1 . 1 2 . Special Melee Weapon . | . . . . . . . . . . . . . . . . . . . . . . . . . . . . . Unidentified Prototypes 39 | . 1 2 1 3 . . . . . 2 . . . . . . 3 7 . . 7 . 3 1 . 4 3 2 Corrupted Parts 13 | . . . . . . . . . . . . . . . . . . . . . . . . 8 1 . 1 3 System Corruption 93 | . . . . . . . . . . . . . . . . . . . . . . . . 58 2 . 8 25 Parts Lost 173 | . 2 3 . . . 4 4 . 2 . 12 . . . . . 1 25 . 2 . 1 4 30 . 27 3 53 Power 15 | . 1 . . . . . . . . . 1 . . . . . . 2 . . . . . 4 . 2 . 5 Propulsion 57 | . 1 3 . . . 1 1 . . . 3 . . . . . . 8 . 1 . . 2 11 . 16 . 10 Utility 64 | . . . . . . 1 2 . . . 6 . . . . . 1 11 . 1 . 1 1 10 . 5 2 23 Weapon 37 | . . . . . . 2 1 . 2 . 2 . . . . . . 4 . . . . 1 5 . 4 1 15 Highest Loss Streak 24 | . 2 2 . . . 4 1 . 1 . 7 . . . . . 1 10 . 1 . 1 4 12 . 7 7 24 To Critical Strikes 1 | . . . . . . . . . . . 1 . . . . . . . . . . . . . . . . . Average Backups 22 | 6 15 24 25 25 25 24 24 24 24 25 22 23 23 23 24 24 23 21 21 22 22 21 20 21 22 23 22 19 Power 1 | 1 . . 1 1 1 1 2 2 1 1 1 1 1 1 1 1 1 1 . 1 1 1 1 1 1 . 1 1 Propulsion 4 | 4 5 7 8 8 8 8 7 7 7 8 6 4 5 5 5 5 5 4 6 5 2 3 1 1 1 1 2 4 Utility 8 | . 6 9 8 9 9 7 7 8 8 10 8 9 10 12 13 12 10 7 4 4 6 7 7 7 7 9 8 6 Weapon 7 | . 3 6 7 7 7 7 7 7 6 6 5 7 6 4 4 4 5 7 10 10 11 10 9 10 13 11 10 8 Tool/Special . | . . . . . . . . . . . . . . . . . . . . . . . . . . . . . Unused Backups 102 | 1 1 5 3 1 . 1 3 . 1 5 . 5 1 1 . 2 4 4 6 1 6 . 1 7 . 6 12 25 Power 13 | . 1 . 1 . . . 2 . . . . 1 . . . . . 1 . . . . 1 1 . . 3 2 Propulsion 29 | 1 . . . . . . . . . 4 . 1 . 1 . . . . 2 1 . . . 2 . . 1 16 Utility 32 | . . 4 1 1 . 1 1 . . . . 1 1 . . 1 4 2 4 . 3 . . . . 4 1 3 Weapon 26 | . . 1 1 . . . . . 1 1 . 2 . . . 1 . . . . 3 . . 3 . 2 7 4 Tool/Special 2 | . . . . . . . . . . . . . . . . . . 1 . . . . . 1 . . . . Average Slot Usage (%) 92 | . 100 98 100 99 100 99 99 100 99 100 97 94 92 92 72 92 98 87 73 86 93 99 98 83 96 95 87 80 Engine 4 | . 14 11 11 11 11 9 9 9 9 9 5 6 7 7 7 7 1 1 . . . . 3 . . . . . Reactor 2 | . . . . . . . . . . . . . . . . . . . 2 . 2 5 5 7 10 8 8 7 Treads 18 | . . . 29 33 33 21 21 9 11 9 13 28 23 23 23 23 30 26 17 17 23 29 30 9 . . 12 10 Leg 3 | . 13 . . . . . . . . . . . . . . . . . . . . . . 9 31 28 5 3 Wheel 4 | . 14 31 3 . . 5 5 18 15 17 13 4 7 7 7 7 1 . . . . . . 4 . 2 1 . Device 14 | . 14 11 11 . . 3 8 9 9 9 6 7 7 7 7 7 15 16 24 32 26 22 20 16 11 17 22 20 Storage 7 | . 14 11 11 11 11 9 9 9 9 9 9 7 7 7 7 7 6 5 5 5 5 5 5 8 10 5 4 5 Processor 7 | . . . . . . 8 9 9 9 9 9 7 7 7 7 7 12 9 . 5 5 5 5 6 10 9 11 13 Hackware 1 | . . . . . . . . . . . . 4 . . . . . . . . 3 5 5 3 . 2 . 1 Protection 5 | . . 10 11 21 22 14 9 9 9 9 10 2 7 7 7 7 4 4 . . 2 5 5 3 5 5 7 3 Energy Cannon 4 | . 8 . . . . 1 8 9 8 12 14 . . . . . 3 3 1 1 3 11 9 5 . 2 5 7 Ballistic Gun 6 | . . 15 15 16 18 25 17 18 18 14 9 11 7 6 . 7 2 3 . 3 . . 2 2 10 1 . . Ballistic Cannon 4 | . 12 3 . . . . . . . . . 5 14 14 2 15 13 5 9 5 9 3 2 2 . . 2 4 Slashing Weapon 1 | . . . . . 3 . . . . . 2 4 . . . . . 2 5 4 1 . . . . 7 1 . Peak Build Rating 207 | 9 13 19 27 34 27 30 35 32 33 39 47 64 64 59 55 59 85 100 115 117 135 124 135 155 143 159 195 207 Average Rating 90 | 8 10 16 21 20 23 28 29 31 32 35 37 56 60 58 44 58 77 89 104 111 114 121 130 124 137 141 177 182 On Entrance 67 | . 9 11 19 19 22 27 30 31 32 33 39 46 64 60 55 55 59 85 93 115 98 124 122 123 136 143 119 190 Avg Prop Armor Cover (%) 13 | . 11 . . . . 7 7 7 7 7 7 21 18 18 22 17 17 9 . . . . 3 16 . 8 12 9 Naked Turns . | . . . . . . . . . . . . . . . . . . . . . . . . . . . . . Heaviest Build 211 | 13 93 99 101 102 102 113 113 105 105 111 112 122 122 117 117 117 125 146 129 133 151 152 176 186 165 211 184 210 Greatest Support 270 | 32 32 36 60 60 60 60 60 32 60 32 60 102 28 28 28 60 150 180 190 190 164 138 167 170 160 183 265 270 Greatest Overweight (x) 31 | . 5 4 3 1 1 5 5 5 5 3 4 4 4 4 4 4 4 1 . 1 1 1 1 9 1 13 7 31 Average Overweight (x) 1 | . 1 2 1 1 1 2 2 3 2 3 2 2 4 3 3 3 . . . . . . . 2 . . 1 . Largest Inventory Capacity 25 | 8 25 25 25 25 25 25 25 25 25 25 25 25 25 25 25 25 25 25 25 25 25 25 25 25 25 25 25 25 Average Capacity 24 | 7 19 25 25 25 25 25 25 25 25 25 25 25 25 25 25 25 25 25 25 25 25 25 25 25 25 25 25 25 Most Carried 25 | 8 22 25 25 25 25 25 25 25 25 25 25 25 25 25 25 25 25 25 25 25 25 25 25 25 24 25 25 25 Average Carried 23 | 6 15 24 24 24 25 24 24 24 24 24 22 23 24 24 25 24 24 23 23 24 24 24 24 23 23 23 24 21 Final Capacity 25 | 8 25 25 25 25 25 25 25 25 25 25 25 25 25 25 25 25 25 25 25 25 25 25 25 25 25 25 25 25 Final Carried 25 | 8 22 25 25 25 25 25 25 25 25 25 18 25 25 25 25 25 25 23 25 24 25 24 23 24 23 22 25 25 Class Distribution -------------------- 21% | Mutant 18% | Scavenger-Skirmisher 9% | Scavenger-Tank 9% | Gunner 7% | Skirmisher 7% | Scavenger-Gladiator 4% | Tank 3% | Derelict-Mutant Dominant Class ---------------- Mutant | -10/Materials Mutant | -9/Materials Mutant | -9/Mines Mutant | -9/Exiles Mutant | -8/Mines Tank | -8/Materials Scavenger-Skirmisher | -8/Garrison Scavenger-Skirmisher | -8/Materials Scavenger-Skirmisher | -8/Garrison Scavenger-Skirmisher | -8/Materials Scavenger-Skirmisher | -8/Garrison Mutant | -7/Factory Gunner | -7/Lower Caves Gunner | -7/Lower Caves Mutant | -7/Data Miner Gunner | -6/Proximity Caves Skirmisher | -6/Factory Assassin | -5/Factory Mutant | -5/Upper Caves Derelict-Mutant | -5/Upper Caves Hacker-Tank | -5/Warlord Hacker-Gunner | -4/Proximity Caves Hacker-Skirmisher | -4/Factory Hacker-Mutant | -4/Armory Scavenger-Tank | -4/Lab Scavenger-Gladiator | -3/Research Scavenger-Tank | -2/Research Scavenger-Tank | -1/Access Resources | -11 -10 -9 -9 -9 -8 -8 -8 -8 -8 -8 -8 -7 -7 -7 -7 -6 -6 -5 -5 -5 -5 -4 -4 -4 -4 -3 -2 -1 ----------- Run | Yrd Mat Mat Min Exi Min Mat Gar Mat Gar Mat Gar Fac Low Low Dat Pro Fac Fac Upp Upp War Pro Fac Arm Lab Res Res Acc Matter Collected 25234 | 398 466 399 161 . 191 318 924 76 393 124 416 663 264 87 . 192 2175 1538 446 568 838 180 681 3198 . 3336 760 6442 Remotely 10190 | . . . . . . . . . . . . . . . . . 1538 630 . 325 573 164 135 1410 . 905 275 4235 Salvage Created 25529 | 207 503 808 114 . 127 683 1100 97 468 240 766 765 227 57 . 60 1600 1594 233 378 . 62 374 1767 . 2960 581 9758 Parts 1124 | 23 33 41 5 . 13 32 56 4 31 13 30 38 18 6 . 1 57 71 10 16 . 3 23 85 . 133 20 362 Haulers Intercepted 15 | . 1 1 . . . 2 . . . 1 . 2 . . . . 3 1 . . . . . . . 3 . 1 Recyclers Shooed 11 | . 1 . . . . . . . . . . . . . . . 4 1 . . . . 1 . . 3 . 1 Parts Field Recycled 28 | . . . . . . . . . . . . . . . . . . . 15 7 . . 6 . . . . . Retrieved Matter 210 | . . . . . . . . . . . . . . . . . . . 26 110 . . 74 . . . . . Parts Self-Destructed 51 | . . . . . . . . . . . . . 18 2 . 1 . . 16 11 . 3 . . . . . . Prevented 1 | . . . . . . . . . . . . . . . . . . . 1 . . . . . . . . . Parts Restored . | . . . . . . . . . . . . . . . . . . . . . . . . . . . . . Kills | -11 -10 -9 -9 -9 -8 -8 -8 -8 -8 -8 -8 -7 -7 -7 -7 -6 -6 -5 -5 -5 -5 -4 -4 -4 -4 -3 -2 -1 ------- Run | Yrd Mat Mat Min Exi Min Mat Gar Mat Gar Mat Gar Fac Low Low Dat Pro Fac Fac Upp Upp War Pro Fac Arm Lab Res Res Acc Combat Hostiles Destroyed 522 | . 14 11 2 . 4 11 26 . 14 3 18 9 6 4 . 2 21 35 . 21 . 6 10 63 . 56 8 178 Melee 47 | . . . . . . . 1 . . . 1 . . . . . . 3 . . . . . 13 . 26 . 3 Guns 56 | . . 11 2 . . 6 9 . 2 1 4 3 1 . . . 3 5 . . . . 2 2 . 3 1 1 Cannons 155 | . 14 . . . . 1 9 . 6 2 8 2 3 . . 2 15 8 . 3 . 4 7 15 . 1 6 49 AOE 200 | . . . . . 4 4 7 . 6 . 3 3 2 4 . . 3 18 . 18 . 2 1 29 . 26 . 70 Classes Destroyed 26 | 1 6 4 . . . 4 . . 2 . 1 . . . . . . 2 1 . . 1 . 1 . 2 . 1 Worker 30 | . 3 1 . . 1 2 . . . 1 . 1 . . . . 1 . . . . . . . . 15 . 5 Builder 16 | . . 2 . . . . . . . . . 2 . . . . . . . . . . . . . 6 . 6 Tunneler 13 | 9 . . 1 . . . . . . . . . . . . . 2 . . . . . . . . . . 1 Hauler 15 | . 1 1 . . . 2 . . . 1 . 2 . . . . 3 1 . . . . . . . 3 . 1 Recycler 21 | . 1 2 . . 1 . . 1 . . . 5 . . . . 5 2 . . . . . . . 3 . 1 Mechanic 20 | . . 1 . . . . . . . . . . . . . . . . . . . . . 2 . 1 . 16 Operator 4 | . 1 . . . . . . . . 1 . . . . . . 1 . . . . . . . . 1 . . Drone 2 | . . . . . . . . . . . . . . . . . . . . . . 2 . . . . . . Watcher 12 | . . . . . . 1 . . . . 1 . . . . . 1 2 . . . . 2 2 . . . 3 Swarmer 85 | . 6 . . . 4 . . . 3 . . 3 . 4 . . 3 6 . 9 . . . 21 . 18 3 5 Saboteur 10 | . . . . . . . . . . . . . . . . . . 1 . . . . . 1 . . . 8 Grunt 176 | . 8 6 2 . . 6 14 . 1 2 8 3 3 . . . 6 9 . 12 . . 3 8 . 13 2 70 Brawler 12 | . . . . . . . . . . . 1 . . . . . . . . . . . 1 2 . . . 8 Duelist 20 | . . 1 . . . . 2 . . . 1 . 1 . . . . 1 . . . . . 5 . 1 . 8 Protector 4 | . . . . . . . . . . . . . . . . . . 1 . . . . . 1 . . . 2 Sentry 43 | . . 4 . . . 1 9 . 6 1 . 1 . . . . 5 1 . . . . 1 4 . 6 . 4 Demolisher 4 | . . . . . . . . . 1 . . . . . . . . . . . . . . 3 . . . . Specialist 14 | . . . . . . 2 . . . . . . . . . . . 7 . . . . . 4 . 1 . . Hunter 35 | . . . . . . 1 1 . . . 2 . . . . 2 1 2 . . . 4 . 4 . 4 . 14 Programmer 87 | . . . . . . . . . 3 . 6 2 2 . . . 5 7 . . . . 5 8 . 11 . 38 Heavy 4 | . . . . . . 1 . . . . . . . . . . 1 . . . . . . 2 . . . . Behemoth 2 | . . . . . . . . . . . . . . . . . . . . . . . . 1 . . . 1 Investigator 2 | . . . . . . . . . . . . . . . . . . . . . . . . . . . . 2 Striker 14 | . . . . . . . . . . . . . . . . . . . . . . . . . . 1 . 13 Executioner 11 | . . . . . . . . . . . . . . . . . . . . . . . . . . 1 3 7 Decomposer 4 | . . . . . . . . . . . . . 1 1 . . . . 2 . . . . . . . . . Samaritan 4 | . . . . . . . . . . . . . . . . . . . 4 . . . . . . . . . Wasp 1 | . . . . . . . . . . . . . . . . . . . . . . . . . . . 1 . Best Kill Streak 33 | 2 6 7 2 . 4 5 4 1 4 3 4 5 4 4 . 1 4 16 . 16 . 3 3 13 . 20 5 33 Combat Bots Only 17 | . 5 5 2 . 4 5 4 . 4 2 4 5 4 4 . 1 3 15 . 16 . 3 3 11 . 9 5 17 Max Kills in Single Turn 7 | 1 1 2 1 . 3 2 2 1 2 1 1 2 1 2 . 1 2 3 1 2 . 2 1 5 . 7 1 4 Gunslinging . | . . . . . . . . . . . . . . . . . . . . . . . . . . . . . Exploded 5 | . . . . . 3 2 2 . 2 . 1 2 1 2 . . 2 2 . 2 . 2 1 5 . 4 . 4 Melee 1 | . . . . . . . 1 . . . 1 . . . . . . 1 . . . . . 1 . 1 . 1 Uniques/NPCs Destroyed . | . . . . . . . . . . . . . . . . . . . . . . . . . . . . . Combat | -11 -10 -9 -9 -9 -8 -8 -8 -8 -8 -8 -8 -7 -7 -7 -7 -6 -6 -5 -5 -5 -5 -4 -4 -4 -4 -3 -2 -1 -------- Run | Yrd Mat Mat Min Exi Min Mat Gar Mat Gar Mat Gar Fac Low Low Dat Pro Fac Fac Upp Upp War Pro Fac Arm Lab Res Res Acc Hostile Shots Fired 4049 | . 62 52 6 . 11 96 89 6 37 18 128 61 19 8 . 33 230 428 . 106 . 103 188 636 . 505 93 1134 Missed 1214 | . 13 15 2 . 4 32 21 3 14 6 31 18 9 2 . 7 66 115 . 25 . 43 72 205 . 157 25 329 Hits 2835 | . 49 37 4 . 7 64 68 3 23 12 97 43 10 6 . 26 164 313 . 81 . 60 116 431 . 348 68 805 Melee 137 | . . 2 . . . . 3 . . . 17 . . 3 . . . 32 . 5 . . 2 25 . 12 . 36 Projectile 2698 | . 49 35 4 . 7 64 65 3 23 12 80 43 10 3 . 26 164 281 . 76 . 60 114 406 . 336 68 769 AOE 33 | . . . . . . . . . 4 . . . . . . . 1 . . . . . 4 20 . . 1 3 Critical Strikes 150 | . 1 . . . . . 7 . 2 . 7 . 1 . . . 7 22 . 3 . 4 5 25 . 17 3 46 Actively Blocked 98 | . . . . . . . . . . . . . . . . . 2 10 . 3 . . 1 25 . 10 3 44 Part Disruptions 16 | . . . . . . . . . . . . . . . . . 1 8 . . . . 3 . . . . 4 Damage Taken 51315 | . 494 525 61 . 58 1073 1010 43 448 181 1656 564 121 35 . 326 1940 7004 . 1432 . 856 2284 7123 . 6553 1792 15736 Core 4679 | . 118 92 18 . . 78 97 . 44 15 287 39 12 . . 69 153 404 . 140 . 52 84 694 . 653 183 1447 Absorbed by Shields 8192 | . . . . . . . 93 . 28 . . 26 34 12 . 115 275 . . . . 202 458 2212 . 1489 . 3248 Reduced by Siege Mode 1560 | . . . . . . . . . . . . . . . . . . . . 136 . . . . . . 139 1285 Redirected to Shielding 44 | . . . . . . . . . . . . . . . . . . . . . . . . 15 . . . 29 Ignored by Resistances 2619 | . . . . . . . . . . . . . . . . . 9 . . . . . . 467 . 564 36 1543 Regen/Repaired (Parts) 1202 | . . . . . . . . . . . . . . . . . 11 . . . 188 . 35 . . 436 532 . Core Remaining (%) 55 | 100 52 . . . 72 . . . . . 5 . . . . 82 82 . . . . 40 . . 32 49 87 9 Volleys Fired 1364 | 38 49 36 9 . 4 36 106 1 40 24 64 34 7 16 . 8 133 96 1 46 . 18 50 106 . 39 40 363 Largest 4 | 1 2 2 2 . 1 3 3 3 3 3 3 3 3 3 . 3 3 3 1 3 . 3 3 3 . 3 3 4 Hottest 414 | 20 100 46 46 . 120 126 131 131 131 176 176 120 108 108 . 108 167 163 40 165 . 220 231 238 . 200 240 414 Shots Fired 2350 | 38 90 71 17 . 4 100 183 3 75 42 128 60 11 23 . 22 264 189 2 55 . 48 94 171 . 53 78 529 Gun 615 | 38 2 70 17 . . 86 81 2 38 14 35 22 3 3 . 9 41 60 . 2 . . 24 30 . 18 4 16 Cannon 1500 | . 83 1 . . 1 10 88 1 30 28 85 36 5 15 . 13 221 104 2 31 . 46 68 115 . 17 74 426 Launcher 230 | . . . . . 3 4 14 . 7 . 8 2 3 5 . . 2 25 . 22 . 2 2 26 . 18 . 87 Special 5 | . 5 . . . . . . . . . . . . . . . . . . . . . . . . . . . Kinetic 1193 | 38 45 71 17 . . 86 81 2 38 14 35 54 8 18 . 22 204 117 2 14 . 16 32 74 . 22 15 168 Thermal 815 | . 43 . . . 1 10 88 1 30 28 85 4 . . . . 58 40 . 19 . 30 60 65 . 12 40 201 Explosive 180 | . . . . . 3 4 14 . 7 . 8 2 3 5 . . 2 25 . 22 . 2 2 18 . 15 . 48 Electromagnetic 159 | . 2 . . . . . . . . . . . . . . . . 7 . . . . . 11 . 4 23 112 Entropic 3 | . . . . . . . . . . . . . . . . . . . . . . . . 3 . . . . Robot Hit Streak 24 | 8 8 18 23 . . 18 24 2 10 4 20 21 13 2 . 4 17 20 . 18 . 7 11 12 . 10 11 21 Robot Miss Streak 7 | 2 3 2 2 . . 2 1 . 3 2 2 2 . 2 . 2 3 3 . 2 . 5 2 7 . 2 3 6 Penetration Max 1 | . . . . . . . 1 . . 1 . . . . . . 1 1 . . . . 1 . . 1 . 1 Secondary Targets 4 | . . 2 . . . . . . . . . . . . . . . 2 . . . . . . . . . . Max Gunslinging Chain 1 | . . 1 . . . . . . . . . . . . . . . 1 . . . . . . . . . . Shots Hit Robots 1465 | 28 50 54 12 . 2 78 87 1 24 13 71 41 9 5 . 13 161 121 11 27 . 25 53 120 . 164 40 255 Core Hits 1209 | 9 20 24 4 . 5 35 51 1 20 9 36 20 13 6 . 6 61 107 5 54 . 11 21 109 . 140 16 426 Critical Kills 27 | . . . . . . 1 1 . . . 1 . . . . . 2 5 . . . . 2 2 . 3 3 7 Critical Parts Destroyed 36 | . . . . . . 1 2 . . . . . . . . . 3 10 . . . . 5 1 . 1 2 11 Critical Strikes 114 | . 1 . . . . 2 4 . . . 1 1 . . . . 12 18 . 1 . 2 7 11 . 22 7 25 Meltdown 5 | . . . . . . . . . . . 1 . . . . . 1 1 . . . . . . . . . 2 Destroy 61 | . . . . . . 2 4 . . . . . . . . . 4 14 . . . . 7 3 . 6 5 16 Blast 23 | . 1 . . . . . . . . . . 1 . . . . 7 2 . 1 . 2 . 3 . 1 1 4 Corrupt 4 | . . . . . . . . . . . . . . . . . . 1 . . . . . . . . 1 2 Sever 13 | . . . . . . . . . . . . . . . . . . . . . . . . 1 . 12 . . Impale 3 | . . . . . . . . . . . . . . . . . . . . . . . . . . 3 . . Sunder 5 | . . . . . . . . . . . . . . . . . . . . . . . . 4 . . . 1 Melee Attacks 363 | . 14 8 2 . 3 . . . . . 7 23 1 . . . . 8 12 12 . . . 42 . 203 . 28 Impact 24 | . 14 8 2 . . . . . . . . . . . . . . . . . . . . . . . . . Slashing 274 | . . . . . 3 . . . . . 7 23 1 . . . . 8 12 12 . . . 5 . 180 . 23 Piercing 15 | . . . . . . . . . . . . . . . . . . . . . . . . . . 15 . . Entropic 50 | . . . . . . . . . . . . . . . . . . . . . . . . 37 . 8 . 5 Sneak Attacks 44 | . 1 . . . 2 . . . . . . 8 1 . . . . 2 10 . . . . 3 . 16 . 1 Combat Hostiles 1 | . . . . . . . . . . . . . . . . . . . . . . . . 1 . . . . Follow-up Attacks 39 | . . . . . . . . . . . . . . . . . . . . . . . . 1 . 38 . . Damage Inflicted 98469 | 356 1020 845 176 . 419 1558 2574 26 985 372 2473 1691 520 411 . 244 4788 6113 859 2946 . 1196 2745 12652 . 14701 1464 37335 Guns 6252 | 356 22 845 176 . . 976 895 . 225 192 334 346 60 16 . 43 542 398 . . . . 174 202 . 117 113 220 Cannons 25981 | . 888 . . . . 182 688 26 282 167 1287 425 101 88 . 201 4092 2087 . 222 . 835 1629 2610 . 231 1351 8589 Explosions 53979 | . 41 . . . 220 400 984 . 478 . 695 254 273 307 . . 127 3459 . 2556 . 361 926 7197 . 7643 . 28058 Melee 12111 | . 69 . . . 199 . . . . . 149 666 86 . . . . 146 859 168 . . . 2643 . 6710 . 416 Ramming 146 | . . . . . . . 7 . . 13 8 . . . . . 27 23 . . . . 16 . . . . 52 Kinetic 16630 | 356 467 845 176 . . 976 895 . 225 192 334 585 161 104 . 244 3364 1693 . 222 . 202 370 1045 . 277 277 3620 Thermal 14675 | . 462 . . . . 182 688 26 282 167 1287 186 . . . . 1270 687 . . . 633 1433 1808 . 40 677 4847 Explosive 41469 | . . . . . 220 400 984 . 478 . 695 254 273 307 . . 127 3346 . 2556 . 361 926 5090 . 7259 . 18193 Electromagnetic 12414 | . 22 . . . . . . . . . . . . . . . . 218 . . . . . 1042 . 415 510 10207 Impact 69 | . 69 . . . . . . . . . . . . . . . . . . . . . . . . . . . Slashing 8315 | . . . . . 199 . . . . . 149 666 86 . . . . 146 859 168 . . . 135 . 5652 . 255 Piercing 436 | . . . . . . . . . . . . . . . . . . . . . . . . . . 436 . . Entropic 4315 | . . . . . . . . . . . . . . . . . . . . . . . . 3532 . 622 . 161 Highest Corruption 88 | . . . . . . . . . 2 2 11 1 1 1 1 1 1 25 25 25 25 . 6 69 71 7 8 88 Average Corruption 17 | . . . . . . . . . 1 2 5 1 1 1 1 1 1 11 25 25 25 . 3 27 69 4 8 39 Corruption Purged 8 | . . . . . . . . . . . . 1 . . . . . . . . . . . 7 . . . . Corruption Blocked . | . . . . . . . . . . . . . . . . . . . . . . . . . . . . . Effects 564 | . . . . . . . . . 12 2 21 1 3 3 1 5 21 29 36 47 2 . 8 93 1 23 23 233 Message Errors 110 | . . . . . . . . . 2 . 2 1 . . . 3 1 5 9 11 . . 1 13 . 4 7 51 Matter Fused 127 | . . . . . . . . . 5 1 3 . . . . . 11 5 9 8 2 . 1 18 1 5 6 52 Heat Flow Errors 55 | . . . . . . . . . 1 . 4 . . 1 . . . 2 3 6 . . 2 7 . 5 3 21 Energy Discharges 68 | . . . . . . . . . 2 1 5 . 1 . . . 2 3 4 9 . . 3 14 . 2 1 21 Parts Rejected 11 | . . . . . . . . . . . . . . . . . 1 1 . 1 . . . 4 . 1 1 2 Parts Fused 10 | . . . . . . . . . . . . . . . . . 1 2 . 1 . . . 2 . 1 . 3 Data Loss (minor) 59 | . . . . . . . . . . . 2 . 1 1 1 . 1 3 5 4 . . . 9 . 3 4 25 Data Loss (major) 29 | . . . . . . . . . . . . . 1 . . . 1 1 5 1 . . 1 5 . 2 . 12 Misfires 28 | . . . . . . . . . 1 . 3 . . 1 . 1 1 . 1 4 . . . 6 . . . 10 Alerts 13 | . . . . . . . . . 1 . . . . . . 1 1 1 . 1 . . . 2 . . . 6 Misdirections 18 | . . . . . . . . . . . 1 . . . . . . 3 . . . . . 4 . . . 10 Weapon Failures 36 | . . . . . . . . . . . 1 . . . . . 1 3 . 1 . . . 9 . . 1 20 Overload Shots . | . . . . . . . . . . . . . . . . . . . . . . . . . . . . . Overflow Damage 5261 | . 57 . . . 66 . . . . . 42 317 . 10 . . 224 183 208 59 . 9 238 1037 . 771 14 2026 Projectiles 937 | . 13 . . . . . . . . . 20 7 . . . . 223 78 . 4 . 9 128 120 . . 14 321 Explosions 2702 | . . . . . . . . . . . 14 . . 10 . . . 105 . 32 . . 110 469 . 330 . 1632 Melee 1622 | . 44 . . . 66 . . . . . 8 310 . . . . 1 . 208 23 . . . 448 . 441 . 73 Knockbacks 88 | . 4 . . . . . . . . . . 5 . 2 . 4 15 16 . 4 . 4 3 2 . 1 2 26 Impact . | . . . . . . . . . . . . . . . . . . . . . . . . . . . . . Kinetic 85 | . 3 . . . . . . . . . . 5 . 2 . 4 15 16 . 4 . 4 2 2 . 1 2 25 Secondary 3 | . 1 . . . . . . . . . . . . . . . . . . . . . 1 . . . . 1 Self-Inflicted Damage 1153 | . 28 . . . 1 22 2 . . . 83 . . . . . . 74 . 128 . . . 553 . 45 . 217 Shots 50 | . 1 . . . 1 1 1 . . . 4 . . . . . . 3 . 7 . . . 19 . 2 . 11 Rammed 11 | . . . . . . . 1 . . 2 1 . . . . . 1 4 . . . . 1 . . . . 1 Targets Rammed 16 | . . . . . . . 2 . . 2 1 . . . . . 2 7 . . . . 1 . . . . 1 Kicked . | . . . . . . . . . . . . . . . . . . . . . . . . . . . . . Crushed 5 | . . . . . . . 1 . . . . . . . . . 1 3 . . . . . . . . . . Highest Temperature 420 | . . . . . 92 182 231 6 91 75 363 280 48 80 . 74 253 316 216 211 . 54 200 371 . 243 183 420 Average Temperature 71 | . . . . . 32 61 47 4 12 23 108 80 22 33 . 43 75 53 91 54 . 25 63 92 . 59 67 84 Received Heat Transfer 5556 | . 93 177 36 . . 180 461 9 105 108 126 132 43 . . . 416 865 . 270 . . 441 298 . 690 36 1070 Effects 7 | . . . . . . . . . . . 1 . . . . . . 1 . . . . . . . 3 . 2 Energy Bleed 1 | . . . . . . . . . . . . . . . . . . 1 . . . . . . . . . . Interference 6 | . . . . . . . . . . . 1 . . . . . . . . . . . . . . 3 . 2 Siege Activations 19 | . . . . . . . . . . . . . . . . . . . . 2 . . . . . . 1 16 Total Turns 604 | . . . . . . . . . . . . . . . . . . . . 28 . . . . . . 28 548 Longest Duration 149 | . . . . . . . . . . . . . . . . . . . . 17 . . . . . . 28 149 Martial Activations . | . . . . . . . . . . . . . . . . . . . . . . . . . . . . . Shielding Activations 2 | . . . . . . . . . . . . . . . . . . . . . . . . 2 . . . . Total Turns 2 | . . . . . . . . . . . . . . . . . . . . . . . . 2 . . . . Longest Duration 1 | . . . . . . . . . . . . . . . . . . . . . . . . 1 . . . . Robots Disrupted 5 | . 1 . . . . . . . . . . . . . . . . . . . . . . 2 . . . 2 Combat Hostiles 4 | . . . . . . . . . . . . . . . . . . . . . . . . 2 . . . 2 Robots Corrupted 58 | . . . . . . . . . . . . . . . . . . . . . . . . 5 . . 1 52 Combat Hostiles 55 | . . . . . . . . . . . . . . . . . . . . . . . . 4 . . 1 50 Parts Fried 131 | . 1 . . . . . . . . . . . . . . . 2 1 . . . . . 9 . 5 11 102 Impact Corruptions 2 | . 1 . . . . . . . . . . . . . . . 1 . . . . . . . . . . . Robots Melted 7 | . . . . . . . . . . . 2 1 . . . . 1 1 . . . . . . . . . 2 Combat Hostiles 6 | . . . . . . . . . . . 2 1 . . . . . 1 . . . . . . . . . 2 Parts Melted 39 | . 1 . . . . 2 . . . . 6 1 . . . . 2 2 . . . . . . . 1 1 23 Heat Transferred 13447 | . 938 . . . . 350 1222 50 550 324 2206 320 . . . . 1665 605 . . . 407 296 175 . 37 592 3710 Parts Sabotaged 5 | . . . . . . . . . . . . . . . . . . . . . . . . . . 3 . 2 Parts Stolen 6 | . . . . . . . . . . . . . . 2 . . . . . 4 . . . . . . . . Parts Stripped . | . . . . . . . . . . . . . . . . . . . . . . . . . . . . . Power Chain Reactions 19 | . 1 . . . . . . . . . . . . . . . . . . . . . . 2 . . . 16 Alert | -11 -10 -9 -9 -9 -8 -8 -8 -8 -8 -8 -8 -7 -7 -7 -7 -6 -6 -5 -5 -5 -5 -4 -4 -4 -4 -3 -2 -1 ------- Run | Yrd Mat Mat Min Exi Min Mat Gar Mat Gar Mat Gar Fac Low Low Dat Pro Fac Fac Upp Upp War Pro Fac Arm Lab Res Res Acc Maximum Alert Level 5 | . . . . . . 1 5 3 4 2 3 2 . . . . 1 3 . . . . 1 4 . 3 2 5 Low Security (%) 41 | 100 100 100 100 . 100 92 1 . . . . 12 . . . . 78 54 . . . . 70 34 . 46 6 12 Level 1 16 | . . . . . . 7 16 . . 14 12 82 . . . . 21 1 . . . . 29 . . 13 72 5 Level 2 10 | . . . . . . . 20 . 18 85 44 4 . . . . . 14 . . . . . 8 . 7 20 11 Level 3 13 | . . . . . . . 26 100 58 . 42 . . . . . . 29 . . . . . 37 . 31 . 4 Level 4 7 | . . . . . . . 26 . 23 . . . . . . . . . . . . . . 20 . . . 12 Level 5 2 | . . . . . . . 7 . . . . . . . . . . . . . . . . . . . . 7 High Security 8 | . . . . . . . . . . . . . . . . . . . . . . . . . . . . 45 Max Security . | . . . . . . . . . . . . . . . . . . . . . . . . . . . . . Sterilizations 1 | . . . . . . . . . . . . . . . . . . . . . . . . . . . . 1 Peak Influence 4580 | 5 157 172 96 . 108 208 2021 984 1287 627 847 436 . . . . 347 948 . . . . 337 1479 . 1078 573 4580 Initial 984 | . . 25 60 . . . 132 984 620 627 250 436 . . . . . 169 . . . . 300 73 . . 573 164 Average 707 | 1 56 72 8 . 18 52 897 970 940 538 635 283 . . . . 121 377 . . . . 197 664 . 394 323 2178 Influence Increases 19570 | 45 491 376 62 . 120 372 1949 10 787 122 702 472 150 90 . 50 888 1495 5 475 . 110 682 2352 . 1874 274 5617 Destroy 0b10 Robot/C 10500 | . 280 220 40 . 80 220 560 . 340 60 360 180 120 80 . 40 420 680 . 420 . 80 200 1280 . 1120 160 3560 Destroy 0b10 Robot/NC 700 | 45 30 35 5 . 10 25 . 5 . 15 5 50 . . . . 65 30 5 5 . 10 10 30 . 145 . 175 Destroy Leader 1824 | . 52 62 10 . 10 66 20 . 20 12 50 54 30 10 . 10 148 126 . 50 . 20 54 236 . 186 30 568 Allied During Kill 111 | . . . . . . . 43 1 49 . . . . . . . . . . . . . . 18 . . . . Successful Hack 362 | . 36 5 5 . . 11 14 4 35 23 14 66 . . . . 59 54 . . . . 18 18 . . . . Select Force Hacks 150 | . 30 30 . . . 30 . . . . . 60 . . . . . . . . . . . . . . . . Disable Machine 810 | . . 15 . . . . 90 . 15 . 15 30 . . . . 60 135 . . . . 15 255 . 45 . 135 Anti-Garrison Action 1450 | . . . . . . . 1050 . 250 . 150 . . . . . . . . . . . . . . . . . Destroy Structure 2373 | . 18 9 2 . 20 20 127 . 78 12 78 32 . . . . 61 290 . . . . 70 350 . 258 69 879 Advance Influence 300 | . . . . . . . . . . . . . . . . . . . . . . . 300 . . . . . Partial Spotted 15 | . . . . . . . . . . . . . . . . . . . . . . . 15 . . . . . Lose Combat Pursuer 975 | . 45 . . . . . 45 . . . 30 . . . . . 75 180 . . . . . 165 . 120 15 300 Influence Decreases 14990 | 45 431 280 218 . 120 168 132 1077 454 1024 255 988 420 136 . 50 542 941 651 461 268 110 532 1045 1457 854 1019 1312 Entered New Map 5812 | . . 35 96 . . . 72 1037 334 660 135 396 118 10 . . . 177 333 49 268 . . 77 1457 . 447 111 Time Decay 7012 | 45 411 215 122 . 120 128 . 40 . 214 . 592 302 126 . 50 532 514 318 392 . 100 392 608 . 584 542 665 Search Patrol Dispatched 100 | . . . . . . . . . . . . . . . . . . . . . . . 100 . . . . . Lost Part 1716 | . 20 30 . . . 40 40 . 20 . 120 . . . . . 10 250 . 20 . 10 40 290 . 270 30 526 Lost Ally 200 | . . . . . . . 20 . 100 . . . . . . . . . . . . . . 70 . . . 10 Purge Threat 150 | . . . . . . . . . . 150 . . . . . . . . . . . . . . . . . . Squads Dispatched 95 | . 3 1 . . . 4 . . . 1 . 7 . . . . 12 9 . . . . 2 12 . 7 . 37 Investigation 12 | . 2 1 . . . 1 . . . . . 4 . . . . 3 . . . . . 1 . . . . . Extermination 25 | . . . . . . . . . . . . 3 . . . . 6 1 . . . . 1 3 . 4 . 7 Reinforcement 20 | . 1 . . . . 2 . . . . . . . . . . 3 5 . . . . . 4 . 2 . 3 Assault 33 | . . . . . . . . . . . . . . . . . . . . . . . . 5 . 1 . 27 Garrison 5 | . . . . . . 1 . . . 1 . . . . . . . 3 . . . . . . . . . . Intercept . | . . . . . . . . . . . . . . . . . . . . . . . . . . . . . Searches Triggered 1 | . . . . . . . . . . . . . . . . . . . . . . . 1 . . . . . Data Miner Redirects 2 | . . . . . . . . . . . . . . . . . . . . . . . . 1 . 1 . . Construction Impeded 2 | . . . . . . . . . . . . . . . . . . 1 . . . . . . . . . 1 Haulers Reinforced 1 | . . . . . . . . . . . . . . . . . 1 . . . . . . . . . . . Active Scanning Responses . | . . . . . . . . . . . . . . . . . . . . . . . . . . . . . Cargo Convoy Interrupts 2 | . . . . . . . . . . . . . . . . . . 1 . . . . . . . 1 . . Stealth | -11 -10 -9 -9 -9 -8 -8 -8 -8 -8 -8 -8 -7 -7 -7 -7 -6 -6 -5 -5 -5 -5 -4 -4 -4 -4 -3 -2 -1 --------- Run | Yrd Mat Mat Min Exi Min Mat Gar Mat Gar Mat Gar Fac Low Low Dat Pro Fac Fac Upp Upp War Pro Fac Arm Lab Res Res Acc Distress Signals 34 | . 1 2 . . . 1 . . . . 1 . . . . . 1 5 . . . . 2 3 . 4 10 4 Communications Jammed 176 | . . . . . . . . . . . . . . . . . . 60 . . . . . . . 116 . . Distress Signals 162 | . . . . . . . . . . . . . . . . . . 47 . . . . . . . 115 . . Times Spotted 801 | . 33 18 2 . 4 18 25 1 17 6 24 9 6 6 . 2 32 61 . 24 13 6 28 111 . 91 21 243 Peak Tracking Total 15 | . 4 5 2 . 4 6 5 1 3 2 4 4 4 4 . 2 4 11 . 9 12 2 9 13 . 15 6 13 Tactical Retreats 49 | . 2 . . . . . 2 . . . 1 . . . . . 2 7 . . . . . 8 . 7 1 19 Traps | -11 -10 -9 -9 -9 -8 -8 -8 -8 -8 -8 -8 -7 -7 -7 -7 -6 -6 -5 -5 -5 -5 -4 -4 -4 -4 -3 -2 -1 ------- Run | Yrd Mat Mat Min Exi Min Mat Gar Mat Gar Mat Gar Fac Low Low Dat Pro Fac Fac Upp Upp War Pro Fac Arm Lab Res Res Acc Traps Triggered 26 | . 2 . . . . . 7 . 5 . 2 1 . . . . . . . . . . 1 . . 6 . 2 Indirectly . | . . . . . . . . . . . . . . . . . . . . . . . . . . . . . Trap Hack Attempts . | . . . . . . . . . . . . . . . . . . . . . . . . . . . . . Triggered . | . . . . . . . . . . . . . . . . . . . . . . . . . . . . . Disarmed . | . . . . . . . . . . . . . . . . . . . . . . . . . . . . . Reprogrammed . | . . . . . . . . . . . . . . . . . . . . . . . . . . . . . Reused . | . . . . . . . . . . . . . . . . . . . . . . . . . . . . . Traps Extracted . | . . . . . . . . . . . . . . . . . . . . . . . . . . . . . Installed . | . . . . . . . . . . . . . . . . . . . . . . . . . . . . . Triggered . | . . . . . . . . . . . . . . . . . . . . . . . . . . . . . Machines | -11 -10 -9 -9 -9 -8 -8 -8 -8 -8 -8 -8 -7 -7 -7 -7 -6 -6 -5 -5 -5 -5 -4 -4 -4 -4 -3 -2 -1 ---------- Run | Yrd Mat Mat Min Exi Min Mat Gar Mat Gar Mat Gar Fac Low Low Dat Pro Fac Fac Upp Upp War Pro Fac Arm Lab Res Res Acc Machines Disabled 71 | . . 1 . . . . 10 . 5 . 4 2 . . . . 4 9 . 1 . . 1 17 . 3 . 14 Max in Single Turn 4 | . . 1 . . . . 1 . 1 . 1 1 . . . . 1 2 . 1 . . 1 4 . 1 . 1 Garrison Access 6 | . . . . . . . . . . . . . . . . . . . . . . . 1 . . . 3 2 Garrison Relay 11 | . . . . . . . 4 . 4 . 3 . . . . . . . . . . . . . . . . . Machines Repaired . | . . . . . . . . . . . . . . . . . . . . . . . . . . . . . Machines Dismantled . | . . . . . . . . . . . . . . . . . . . . . . . . . . . . . Machines Sabotaged . | . . . . . . . . . . . . . . . . . . . . . . . . . . . . . Overloaded Fab Kills . | . . . . . . . . . . . . . . . . . . . . . . . . . . . . . Hacking | -11 -10 -9 -9 -9 -8 -8 -8 -8 -8 -8 -8 -7 -7 -7 -7 -6 -6 -5 -5 -5 -5 -4 -4 -4 -4 -3 -2 -1 --------- Run | Yrd Mat Mat Min Exi Min Mat Gar Mat Gar Mat Gar Fac Low Low Dat Pro Fac Fac Upp Upp War Pro Fac Arm Lab Res Res Acc Machines Accessed 96 | . 6 3 2 . . 3 2 3 3 4 1 9 . 2 4 . 20 6 . 1 1 . 3 5 . 11 . 7 Terminals 51 | . 5 1 2 . . 1 2 2 3 3 1 5 . 1 . . 10 5 . . . . . 4 . 4 . 2 Fabricators 6 | . . . . . . . . . . . . . . . . . 3 . . . . . . . . 1 . 2 Repair Stations 8 | . . . . . . . . . . . . 1 . . . . 4 . . . . . 1 . . 2 . . Recycling Units 10 | . 1 1 . . . 1 . . . . . 2 . . . . 2 1 . . . . 1 1 . . . . Scanalyzers 7 | . . 1 . . . . . . . . . 1 . . . . 1 . . . . . . . . 3 . 1 Garrison Access 7 | . . . . . . 1 . 1 . 1 . . . . . . . . . . . . 1 . . 1 . 2 Total Hacks 231 | . 14 9 3 . . 8 3 4 5 11 1 18 . 2 27 . 57 12 . 1 1 . 9 15 . 20 . 11 Successful 107 | . 6 7 1 . . 4 1 1 3 7 1 7 . 2 27 . 16 5 . 1 1 . 5 4 . 4 . 4 Failed 124 | . 8 2 2 . . 4 2 3 2 4 . 11 . . . . 41 7 . . . . 4 11 . 16 . 7 Catastrophic 25 | . 2 . 1 . . . 1 1 1 . . 7 . . . . 5 1 . . . . . 1 . 3 . 2 Database Lockouts . | . . . . . . . . . . . . . . . . . . . . . . . . . . . . . Manual 46 | . 6 1 1 1 . 2 . 1 . 3 . 7 . . . . 10 4 . . 1 . 1 5 . 1 . 2 Terminals 109 | . 12 2 3 . . 3 3 3 5 10 1 13 . 1 . . 20 10 . . . . . 13 . 8 . 2 Fabricators 19 | . . . . . . . . . . . . . . . . . 13 . . . . . . . . 1 . 5 Repair Stations 23 | . . . . . . . . . . . . 2 . . . . 10 . . . . . 6 . . 5 . . Recycling Units 19 | . 2 1 . . . 2 . . . . . 2 . . . . 6 2 . . . . 2 2 . . . . Scanalyzers 22 | . . 6 . . . . . . . . . 1 . . . . 8 . . . . . . . . 5 . 2 Garrison Access 9 | . . . . . . 3 . 1 . 1 . . . . . . . . . . . . 1 . . 1 . 2 Terminal Hacks 62 | . 5 1 1 . . 2 1 . 3 5 1 3 . 2 27 . 2 4 . 1 1 . . 3 . . . . Record 13 | . . . . . . . . . . . . . . 1 11 . . . . 1 . . . . . . . . Part Schematic 8 | . . . . . . . . . . . . . . . 8 . . . . . . . . . . . . . Robot Schematic 5 | . . . . . . . . . . . . . . . 5 . . . . . . . . . . . . . Robot Analysis 1 | . . . . . . . . . . . . . . . . . . 1 . . . . . . . . . . Prototype ID Bank 3 | . . . . . . . . . . . . . . . 3 . . . . . . . . . . . . . Open Door 3 | . . . . . . . . . 1 . . . . 1 . . . . . . 1 . . . . . . . Branch Access Points 1 | . . . . . . . . . . . . 1 . . . . . . . . . . . . . . . . Emergency Access Points 2 | . . . . . . . 1 . 1 . . . . . . . . . . . . . . . . . . . Terminal Index 3 | . . . . . . . . . . 1 . 1 . . . . . 1 . . . . . . . . . . Fabricator Index 1 | . . . . . . . . . . . . . . . . . 1 . . . . . . . . . . . Alert Level 1 | . . . . . . . . . . . . . . . . . 1 . . . . . . . . . . . Unreport Threat 1 | . . . . . . . . . . 1 . . . . . . . . . . . . . . . . . . Locate Traps 4 | . 2 . . . . 1 . . . . . . . . . . . . . . . . . 1 . . . . Maintenance Status 1 | . . . . . . . . . . 1 . . . . . . . . . . . . . . . . . . Transport Status 1 | . 1 . . . . . . . . . . . . . . . . . . . . . . . . . . . Hauler Manifests 3 | . 1 1 . . . . . . . 1 . . . . . . . . . . . . . . . . . . Registered Components 6 | . 1 . . . . 1 . . . 1 . 1 . . . . . 1 . . . . . 1 . . . . Registered Prototypes 1 | . . . . . . . . . . . . . . . . . . 1 . . . . . . . . . . Zone Layout 2 | . . . 1 . . . . . . . . . . . . . . . . . . . . 1 . . . . Garrison Registry 2 | . . . . . . . . . 1 . 1 . . . . . . . . . . . . . . . . . Fabricator Hacks 4 | . . . . . . . . . . . . . . . . . 1 . . . . . . . . 1 . 2 Network Status 2 | . . . . . . . . . . . . . . . . . . . . . . . . . . 1 . 1 Load Schematic 2 | . . . . . . . . . . . . . . . . . 1 . . . . . . . . . . 1 Repair Station Hacks 9 | . . . . . . . . . . . . 1 . . . . 4 . . . . . 2 . . 2 . . Scan Component 6 | . . . . . . . . . . . . 1 . . . . 3 . . . . . 1 . . 1 . . Repair 3 | . . . . . . . . . . . . . . . . . 1 . . . . . 1 . . 1 . . Recycling Unit Hacks 3 | . . . . . . . . . . . . . . . . . 2 . . . . . 1 . . . . . Report Inventory 1 | . . . . . . . . . . . . . . . . . 1 . . . . . . . . . . . Retrieve Components 2 | . . . . . . . . . . . . . . . . . 1 . . . . . 1 . . . . . Scanalyzer 12 | . . 5 . . . . . . . . . . . . . . 6 . . . . . . . . 1 . . Insert Component 4 | . . 1 . . . . . . . . . . . . . . 3 . . . . . . . . . . . Analyze 4 | . . 1 . . . . . . . . . . . . . . 3 . . . . . . . . . . . Retrieve Study 4 | . . 3 . . . . . . . . . . . . . . . . . . . . . . . 1 . . Garrison Access Hacks 6 | . . . . . . 1 . 1 . 1 . . . . . . . . . . . . 1 . . . . 2 Unlock Access 3 | . . . . . . 1 . 1 . 1 . . . . . . . . . . . . . . . . . . Seal Access 3 | . . . . . . . . . . . . . . . . . . . . . . . 1 . . . . 2 Unauthorized Hacks 11 | . 1 1 . . . 1 . . . 1 . 3 . . . . 1 1 . . . . 1 1 . . . . Terminals 4 | . . . . . . . . . . 1 . 1 . . . . 1 1 . . . . . . . . . . Botnet 4 | . . . . . . . . . . 1 . 1 . . . . 1 1 . . . . . . . . . . Fabricators . | . . . . . . . . . . . . . . . . . . . . . . . . . . . . . Repair Stations . | . . . . . . . . . . . . . . . . . . . . . . . . . . . . . Recycling Units 7 | . 1 1 . . . 1 . . . . . 2 . . . . . . . . . . 1 1 . . . . Mask 2 | . . . . . . . . . . . . . . . . . . . . . . . 1 1 . . . . Tunnel 5 | . 1 1 . . . 1 . . . . . 2 . . . . . . . . . . . . . . . . Scanalyzers . | . . . . . . . . . . . . . . . . . . . . . . . . . . . . . Garrison Access . | . . . . . . . . . . . . . . . . . . . . . . . . . . . . . Data Cores Recovered . | . . . . . . . . . . . . . . . . . . . . . . . . . . . . . Used . | . . . . . . . . . . . . . . . . . . . . . . . . . . . . . Hacking Detections 78 | . 6 2 2 . . 2 2 3 3 3 1 7 . . . . 19 6 . . . . 2 4 . 11 . 5 Full Trace Events 8 | . . . . . . . 1 . 1 . . 2 . . . . 3 . . . . . 1 . . . . . Feedback Events . | . . . . . . . . . . . . . . . . . . . . . . . . . . . . . Feedback Blocked . | . . . . . . . . . . . . . . . . . . . . . . . . . . . . . Robot Schematics Acquired 5 | . . . . . . . . . . . . . . . 5 . . . . . . . . . . . . . Robots Built . | . . . . . . . . . . . . . . . . . . . . . . . . . . . . . Authchips . | . . . . . . . . . . . . . . . . . . . . . . . . . . . . . Time . | . . . . . . . . . . . . . . . . . . . . . . . . . . . . . Total Robot Build Rating . | . . . . . . . . . . . . . . . . . . . . . . . . . . . . . Part Schematics Acquired 12 | . . 1 . . . . . . . . . . . . 8 . 3 . . . . . . . . . . . Parts Built . | . . . . . . . . . . . . . . . . . . . . . . . . . . . . . Authchips . | . . . . . . . . . . . . . . . . . . . . . . . . . . . . . Time . | . . . . . . . . . . . . . . . . . . . . . . . . . . . . . Total Part Build Rating . | . . . . . . . . . . . . . . . . . . . . . . . . . . . . . Part Studies Acquired 4 | . . 3 . . . . . . . . . . . . . . . . . . . . . . . 1 . . Parts Repaired 3 | . . . . . . . . . . . . . . . . . 1 . . . . . 1 . . 1 . . Time 210 | . . . . . . . . . . . . . . . . . 108 . . . . . 28 . . 74 . . Parts Recycled . | . . . . . . . . . . . . . . . . . . . . . . . . . . . . . Recycled Matter . | . . . . . . . . . . . . . . . . . . . . . . . . . . . . . Retrieved Matter . | . . . . . . . . . . . . . . . . . . . . . . . . . . . . . Retrieved Components 5 | . . . . . . . . . . . . . . . . . 2 . . . . . 3 . . . . . Parts Scanalyzed 4 | . . 1 . . . . . . . . . . . . . . 3 . . . . . . . . . . . Part Schematics Acquired 4 | . . 1 . . . . . . . . . . . . . . 3 . . . . . . . . . . . Parts Damaged . | . . . . . . . . . . . . . . . . . . . . . . . . . . . . . Bothacking | -11 -10 -9 -9 -9 -8 -8 -8 -8 -8 -8 -8 -7 -7 -7 -7 -6 -6 -5 -5 -5 -5 -4 -4 -4 -4 -3 -2 -1 ------------ Run | Yrd Mat Mat Min Exi Min Mat Gar Mat Gar Mat Gar Fac Low Low Dat Pro Fac Fac Upp Upp War Pro Fac Arm Lab Res Res Acc Used RIF Installer . | . . . . . . . . . . . . . . . . . . . . . . . . . . . . . Robots Hacked . | . . . . . . . . . . . . . . . . . . . . . . . . . . . . . Non-combat . | . . . . . . . . . . . . . . . . . . . . . . . . . . . . . Combat . | . . . . . . . . . . . . . . . . . . . . . . . . . . . . . Robot Hacks Applied . | . . . . . . . . . . . . . . . . . . . . . . . . . . . . . Relay Couplers Released 57 | . . . . . . . 17 . 15 . 14 . . . . . . . . . . . 6 . . 3 2 . Machine Destruction 50 | . . . . . . . 17 . 15 . 14 . . . . . . . . . . . 2 . . . 2 . Programmers 7 | . . . . . . . . . . . . . . . . . . . . . . . 4 . . 3 . . Fabnet Peak Effective % . | . . . . . . . . . . . . . . . . . . . . . . . . . . . . . Robots Rewired 12 | . 1 . . . . . 5 . . . . . . . . . . . . . . . . 6 . . . . Allies Hacked 1 | . . . . . . . . . . . . . . . . . . . . . . . . 1 . . . . Hacks Repelled . | . . . . . . . . . . . . . . . . . . . . . . . . . . . . . Allies | -11 -10 -9 -9 -9 -8 -8 -8 -8 -8 -8 -8 -7 -7 -7 -7 -6 -6 -5 -5 -5 -5 -4 -4 -4 -4 -3 -2 -1 -------- Run | Yrd Mat Mat Min Exi Min Mat Gar Mat Gar Mat Gar Fac Low Low Dat Pro Fac Fac Upp Upp War Pro Fac Arm Lab Res Res Acc Total Allies 15 | . 1 . . . . . 6 . 2 . . . . . . . . . . . . . . 6 . . . . Largest Group 5 | . 1 . . . . . 5 3 5 . . . . . . . . . . . . . . 4 . . . . Highest-Rated Group 241 | . 9 . . . . . 225 40 102 . . . . . . . . . . . . . . 241 . . . . Highest-Rated Ally 178 | . 9 . . . . . 178 20 31 . . . . . . . . . . . . . . 64 . . . . Initial Warlord ECA Mod 18 | . . . . . . . . 10 10 16 16 18 18 18 18 17 17 15 15 15 15 14 14 14 14 13 12 11 Warlord Squad Rendezvous 1 | . . . . . . . . . . . . . . . . . 1 . . . . . . . . . . . Dakka 1 | . . . . . . . . . . . . . . . . . 1 . . . . . . . . . . . Total Orders 5 | . 1 . . . . . . . . . . . . . . . . . . . . . . 3 . . . 1 AID 3 | . . . . . . . . . . . . . . . . . . . . . . . . 3 . . . . DROP 1 | . 1 . . . . . . . . . . . . . . . . . . . . . . . . . . . EXPLORE 1 | . . . . . . . . . . . . . . . . . . . . . . . . . . . . 1 Ally Attacks 45 | . . . . . . . 13 . 19 . . . . . . . . . . . . . . 13 . . . . Total Damage 1038 | . . . . . . . 286 . 379 . . . . . . . . . . . . . . 373 . . . . Kills 8 | . . . . . . . 2 . 3 . . . . . . . . . . . . . . 3 . . . . Allies Corrupted 2 | . . . . . . . . . . . . . . . . . . . . . . . . 2 . . . . Allies Melted . | . . . . . . . . . . . . . . . . . . . . . . . . . . . . . Intel | -11 -10 -9 -9 -9 -8 -8 -8 -8 -8 -8 -8 -7 -7 -7 -7 -6 -6 -5 -5 -5 -5 -4 -4 -4 -4 -3 -2 -1 ------- Run | Yrd Mat Mat Min Exi Min Mat Gar Mat Gar Mat Gar Fac Low Low Dat Pro Fac Fac Upp Upp War Pro Fac Arm Lab Res Res Acc Active Infowar (turns) 21258 | 327 40 . 1400 . . . . . . . . 1107 636 560 . 652 2466 1417 714 928 1234 530 927 430 . 1161 1437 5292 Optics 6085 | . . . . . . . . . . . . . . . . . . . . . . . . . . . 793 5292 Sensors 14258 | . . . 461 . . . . . . . . 1107 636 560 . 652 2404 1072 714 804 1226 508 747 398 . . 458 2511 Terrain 7990 | 327 40 . . . . . . . . . . . . . . . 650 978 667 928 1234 154 813 234 . . . 1965 Seismic 940 | . . . 940 . . . . . . . . . . . . . . . . . . . . . . . . . Machine Analysis 877 | . . . . . . . . . . . . . . . . . . . . . . . . . . . . 877 Jamming 2928 | . . . . . . . . . . . . . . . . . 59 372 2 92 . 2 . . . 1161 1055 185 ECM 1 | . . . . . . . . . . . . . . . . . . . . . . . 1 . . . . . Robot Analysis Total 1 | . . . . . . . . . . . . . . . . . . 1 . . . . . . . . . . Derelict Logs Recovered 7 | . . . 2 . . . . . . . . . . 1 . . . . 1 2 . 1 . . . . . . Drone Launches 1 | . . . . . . . . . . . . . . . . . . . . . . . . . . . . 1 Drone Recoveries . | . . . . . . . . . . . . . . . . . . . . . . . . . . . . . Exploration | -11 -10 -9 -9 -9 -8 -8 -8 -8 -8 -8 -8 -7 -7 -7 -7 -6 -6 -5 -5 -5 -5 -4 -4 -4 -4 -3 -2 -1 ------------- Run | Yrd Mat Mat Min Exi Min Mat Gar Mat Gar Mat Gar Fac Low Low Dat Pro Fac Fac Upp Upp War Pro Fac Arm Lab Res Res Acc Turns Passed 35301 | 407 1622 534 1489 574 662 519 2859 87 1176 445 752 1871 678 617 138 766 3237 1417 714 928 1234 613 935 2045 20 2129 1541 5292 Spaces Moved 16674 | 257 903 266 639 231 267 186 1198 54 673 263 308 970 393 355 91 452 1587 583 404 461 670 301 363 904 15 1031 818 2031 Core 3 | 3 . . . . . . . . . . . . . . . . . . . . . . . . . . . . Treads 8550 | . . . 546 231 267 107 670 . 67 . 58 301 . . . 4 1311 583 404 461 670 301 363 155 . . 584 1467 Legs 2438 | 249 360 . . . . . . . . . . . . . . . . . . . . . . 365 15 873 81 495 Wheels 5683 | 5 543 266 93 . . 79 528 54 606 263 250 669 393 355 91 448 276 . . . . . . 384 . 158 153 69 Hover . | . . . . . . . . . . . . . . . . . . . . . . . . . . . . . Flight . | . . . . . . . . . . . . . . . . . . . . . . . . . . . . . Fastest Speed 50 | 50 120 106 115 240 240 145 145 135 135 135 125 145 160 145 145 160 160 160 160 160 165 168 165 119 120 115 120 115 Average Speed 162 | 118 149 112 221 240 240 199 198 138 145 135 156 163 160 158 146 160 160 165 160 161 170 177 173 157 134 126 149 155 Slowest Speed 270 | 120 190 135 240 240 240 240 240 145 240 135 250 250 160 160 160 250 240 248 160 246 248 248 249 270 190 265 175 210 Overloaded Moves . | . . . . . . . . . . . . . . . . . . . . . . . . . . . . . Propulsion Burnouts . | . . . . . . . . . . . . . . . . . . . . . . . . . . . . . Robots Hopped 1 | . . . . . . . 1 . . . . . . . . . . . . . . . . . . . . . Potential Cave-ins 7 | . . . . . . . . . . 3 . . . . . . . . . . . . . . . . . 4 Cave-ins Triggered 3 | . . . . . . . . . . . . . . . . . . . . . . . . . . . . 3 Exploration Rate (%) 47 | 8 92 29 99 61 77 26 76 9 73 26 47 24 56 53 69 59 38 18 61 61 84 51 12 49 6 37 27 47 Regions Visited 28 Branch Regions 13 Pre-discovered Areas 9 | . 1 1 1 . . 1 . . . . . 2 1 . 1 . . . . . . 1 . . . . . . Known Exits Taken 9 | . . . . . . 1 . 1 . 1 . 1 . . . . 1 . . 1 . 1 1 . . . 1 . Unknown Exits Taken 16 | 1 1 1 1 1 1 . . . . . . . 1 1 1 1 . 1 1 . 1 . . 1 1 1 . . Scrap Searched 17 | . . . 1 . 1 . . . . . . . 2 3 . 2 . . 4 4 . . . . . . . . Spaces Dug 498 | . 14 4 2 . 24 . 19 . . 15 5 19 . 28 . . 28 25 3 42 . . 16 24 . 86 17 127 Terrain Destroyed 1768 | . 17 4 2 . 36 23 79 . 39 18 72 28 33 47 . 3 62 217 4 171 . 45 34 306 . 155 27 346 Melee 81 | . 10 4 2 . 1 . . . . . . 14 . . . . . 6 1 6 . . . . . 28 . 9 Projectile 415 | . 4 . . . 1 3 . . 2 18 5 7 3 4 . 3 61 32 3 23 . 17 25 33 . 9 27 135 AOE 1269 | . 3 . . . 34 20 79 . 37 . 67 7 30 43 . . . 177 . 142 . 28 9 273 . 118 . 202 Terrain Rammed . | . . . . . . . . . . . . . . . . . . . . . . . . . . . . . Walls Destroyed . | . . . . . . . . . . . . . . . . . . . . . . . . . . . . . Machines Disabled . | . . . . . . . . . . . . . . . . . . . . . . . . . . . . . Actions | -11 -10 -9 -9 -9 -8 -8 -8 -8 -8 -8 -8 -7 -7 -7 -7 -6 -6 -5 -5 -5 -5 -4 -4 -4 -4 -3 -2 -1 --------- Run | Yrd Mat Mat Min Exi Min Mat Gar Mat Gar Mat Gar Fac Low Low Dat Pro Fac Fac Upp Upp War Pro Fac Arm Lab Res Res Acc Total 22260 | 318 1045 417 689 251 279 256 1517 64 809 315 465 1173 427 387 96 474 2068 846 454 587 762 340 570 1346 15 1613 1070 3607 Wait 1868 | 4 12 53 12 9 . 6 93 . 43 1 44 61 9 4 . 8 213 22 4 12 14 7 80 58 . 192 59 848 Move 16643 | 256 902 265 638 230 266 185 1193 54 672 263 307 969 392 354 90 451 1586 582 403 460 669 300 362 903 14 1030 817 2030 Hop 1 | . . . . . . . 1 . . . . . . . . . . . . . . . . . . . . . Pick Up 413 | 8 21 21 5 2 . 8 8 2 7 7 4 25 2 4 . 2 17 25 13 14 17 2 12 46 . 43 34 64 Fast Attach 206 | 8 7 1 1 2 . . 3 2 . 3 1 2 . . 3 . 14 14 5 5 14 . 13 25 . 30 24 29 Attach 222 | 1 5 5 . . . 7 3 . 2 . 13 6 . . . . 5 25 3 10 4 3 5 39 1 22 11 52 Detach 57 | 2 1 . . . . 1 . . . 1 3 . . . . . 1 6 . 3 1 2 . 18 . 2 5 11 Swap 630 | . 19 12 14 4 6 9 40 1 14 4 11 34 13 7 . 3 65 41 3 12 13 6 26 52 . 78 24 119 Drop 407 | 1 12 16 8 4 . 4 17 4 10 10 2 19 3 2 3 2 32 19 10 13 30 2 21 36 . 34 56 37 Fire 1364 | 38 49 36 9 . 4 36 106 1 40 24 64 34 7 16 . 8 133 96 1 46 . 18 50 106 . 39 40 363 Melee 302 | . 14 8 2 . 3 . . . . . 7 23 1 . . . . 8 12 12 . . . 41 . 143 . 28 Ram 1 | . . . . . . . . . . . . . . . . . . 1 . . . . . . . . . . Kick . | . . . . . . . . . . . . . . . . . . . . . . . . . . . . . Crush 16 | . . . . . . . 2 . . 2 1 . . . . . 2 7 . . . . 1 . . . . 1 Escape Stasis 78 | . . . . . . . 24 . 21 . 8 . . . . . . . . . . . . . . . . 25 Rewire 52 | . 3 . . . . . 27 . . . . . . . . . . . . . . . . 22 . . . . Trap . | . . . . . . . . . . . . . . . . . . . . . . . . . . . . . Miscellaneous . | . . . . . . . . . . . . . . . . . . . . . . . . . . . . . Route ------- -11/Scrapyard -10/Materials (discovered 5 exits: *Mat x3 / [*Min x2]) -9/Materials -9/Mines (discovered 3 exits: *Mat x2 / *Exi) -9/Exiles -8/Mines -8/Materials (discovered 2 exits: *Fac / Gar) -8/Garrison (discovered 3 exits: *Mat x3) -8/Materials -8/Garrison (discovered 3 exits: *Mat x3) -8/Materials (discovered 2 exits: [*Sto] / Gar) -8/Garrison (discovered 3 exits: *Fac x3) -7/Factory (discovered 2 exits: *Low x2) -7/Lower Caves -7/Lower Caves -7/Data Miner -6/Proximity Caves -6/Factory (discovered 3 exits: *Fac x2 / [*Low]) -5/Factory (discovered 2 exits: *Fac / [*Upp]) -5/Upper Caves -5/Upper Caves -5/Warlord -4/Proximity Caves -4/Factory -4/Armory -4/Lab -3/Research -2/Research (discovered 2 exits: *Acc x2) -1/Access To Epsilon Eridani History --------- Turn | Location | Event 16 | -11/Scrapyard | Discovered new exit (range 15) 408 | -11/Scrapyard | Entered Materials 409 | -10/Materials | Build established: Mutant 544 | -10/Materials | Discovered new exit (range 13) 923 | -10/Materials | Discovered new exit (range 6) 1070 | -10/Materials | Discovered new exit (range 5) 1132 | -10/Materials | Discovered new exit (range 13) 1751 | -10/Materials | Discovered new exit (range 16) 2030 | -10/Materials | Entered another Materials area 2030 | -9/Materials | Evolved 2 slots: Propulsion x1, Utility x1 2357 | -9/Materials | Discovered new exit (range 14) 2564 | -9/Materials | Entered Mines 2707 | -9/Mines | Joined a pair of Derelicts in attacking an 0b10 outpost 3177 | -9/Mines | Discovered new exit (range 8) 3277 | -9/Mines | Found DCF Scrap (13 items) 3509 | -9/Mines | Found a Scrap Suit stashed away for nefarious purposes 3579 | -9/Mines | Found a damaged Exp. Sensor Array with a note attached 3584 | -9/Mines | Found Prototype Device 3584 | -9/Mines | Identified Exp. Sensor Array 3829 | -9/Mines | Discovered new exit (range 8) 4042 | -9/Mines | Deemed a non-threat by the Exiles lab entrance 4042 | -9/Mines | Discovered new exit (range 5) 4053 | -9/Mines | Entered Exiles 4113 | -9/Exiles | Met 8R-AWN 4154 | -9/Exiles | Met EX-HEX 4229 | -9/Exiles | Met EX-BIN 4262 | -9/Exiles | Aligned with FarCom system 4265 | -9/Exiles | Given EX-Vault access code 4320 | -9/Exiles | Opened EX-Vault 4330 | -9/Exiles | Found Prototype Slashing Weapon 4330 | -9/Exiles | Identified Longsword +1 4336 | -9/Exiles | Found Prototype Storage 4336 | -9/Exiles | Identified Superbattery 4345 | -9/Exiles | Found Prototype Energy Cannon 4345 | -9/Exiles | Identified Gui. Plasma Cannon 4410 | -9/Exiles | Warned to stay clear of 0b10 Research branches 4430 | -9/Exiles | Exiles lab attacked by MAIN.C 4603 | -9/Exiles | Discovered new exit (range 12) 4627 | -9/Exiles | Stole three prototypes: Superbattery, Gui. Plasma Cannon, Longsword +1 4627 | -9/Exiles | Entered Mines 5267 | -8/Mines | Discovered new exit (range 10) 5289 | -8/Mines | Entered Materials 5289 | -8/Materials | Evolved 2 slots: Utility x1, Weapon x1 5290 | -8/Materials | Identified exit to Factory 5699 | -8/Materials | Garrison activated, responded to threat 5784 | -8/Materials | Lost 4 parts (1n1u2w) 5803 | -8/Materials | Identified exit to Garrison 5808 | -8/Materials | Entered Garrison 5918 | -8/Garrison | Triggered checkpoint 6046 | -8/Garrison | Build established: Scavenger-Skirmisher 6150 | -8/Garrison | Garrison Relay disabled 6319 | -8/Garrison | Triggered checkpoint 6483 | -8/Garrison | Triggered checkpoint 6560 | -8/Garrison | Triggered checkpoint 6804 | -8/Garrison | Discovered new exit (range 8) 6906 | -8/Garrison | Triggered checkpoint 7126 | -8/Garrison | Discovered new exit (range 10) 7178 | -8/Garrison | Triggered checkpoint 7217 | -8/Garrison | Garrison Relay disabled 7225 | -8/Garrison | Triggered checkpoint 7947 | -8/Garrison | Attempted to access garrison exit controls, blocked by remote lockdown 8152 | -8/Garrison | Rescued AZ-K3N 8356 | -8/Garrison | Attempted to access garrison exit controls, blocked by remote lockdown 8436 | -8/Garrison | Triggered checkpoint 8468 | -8/Garrison | Garrison Relay disabled 8537 | -8/Garrison | Garrison Relay disabled 8618 | -8/Garrison | Discovered new exit (range 15) 8667 | -8/Garrison | Entered Materials 8667 | -8/Materials | Accompanied by 3 allies 8754 | -8/Materials | Identified exit to Garrison 8754 | -8/Materials | Entered Garrison 8754 | -8/Garrison | Accompanied by 3 allies 8950 | -8/Garrison | Triggered checkpoint 8967 | -8/Garrison | Garrison Relay disabled 9022 | -8/Garrison | Rescued a captive Derelict 9023 | -8/Garrison | Rescued a captive Derelict 9108 | -8/Garrison | Triggered checkpoint 9130 | -8/Garrison | Triggered checkpoint 9177 | -8/Garrison | Lost 3 allies 9268 | -8/Garrison | Triggered checkpoint 9554 | -8/Garrison | Discovered new exit (range 53) 9554 | -8/Garrison | Discovered new exit (range 10) 9554 | -8/Garrison | Discovered new exit (range 86) 9659 | -8/Garrison | Garrison Relay disabled 9724 | -8/Garrison | Triggered checkpoint 9766 | -8/Garrison | Garrison Relay disabled 9885 | -8/Garrison | Garrison Relay disabled 9930 | -8/Garrison | Entered Materials 9962 | -8/Materials | Discovered new exit (range 6) 10364 | -8/Materials | Garrison activated, responded to threat 10375 | -8/Materials | Identified exit to Garrison 10375 | -8/Materials | Entered Garrison 10414 | -8/Garrison | Garrison Relay disabled 10416 | -8/Garrison | Garrison Relay disabled 10459 | -8/Garrison | Triggered checkpoint 10512 | -8/Garrison | Garrison Relay disabled 10523 | -8/Garrison | Discovered exit to Factory (range 37) 10523 | -8/Garrison | Discovered exit to Factory (range 68) 10523 | -8/Garrison | Discovered exit to Factory (range 63) 10634 | -8/Garrison | Triggered checkpoint 10716 | -8/Garrison | Core integrity fell below 50% 10911 | -8/Garrison | Triggered checkpoint 10951 | -8/Garrison | System corruption reached 10% 10982 | -8/Garrison | Lost 7 parts (1p2n3u1w) 11104 | -8/Garrison | Core integrity fell below 20% 11127 | -8/Garrison | Entered Factory 11127 | -7/Factory | Evolved 2 slots: Propulsion x2 11129 | -7/Factory | FarCom data flow suspended 11433 | -7/Factory | Build established: Scavenger-Gunner 11741 | -7/Factory | Build established: Scavenger-Mutant 12102 | -7/Factory | Build established: Mutant 12495 | -7/Factory | Identified exit to Lower Caves 12998 | -7/Factory | Entered Lower Caves 13017 | -7/Lower Caves | Met a Warlord Commander 13018 | -7/Lower Caves | Learned location of Warlord (-5) 13019 | -7/Lower Caves | Warlord Commander delivered Encrypted Comm Array 13024 | -7/Lower Caves | Found Encrypted Comm Array 13291 | -7/Lower Caves | Build established: Gunner 13386 | -7/Lower Caves | Discovered new exit (range 8) 13676 | -7/Lower Caves | Entered another Lower Caves area 13677 | -7/Lower Caves | Gui. Plasma Cannon stolen by Master Thief 13678 | -7/Lower Caves | Encountered a Master Thief 13678 | -7/Lower Caves | Encountered a Master Thief 13679 | -7/Lower Caves | Longsword +1 stolen by Master Thief 13720 | -7/Lower Caves | Learned Factory trap positions 14284 | -7/Lower Caves | Discovered new exit (range 5) 14293 | -7/Lower Caves | Entered Data Miner 14295 | -7/Data Miner | Discovered new exit (range 6) 14323 | -7/Data Miner | Met Data Miner 14350 | -7/Data Miner | Learned location of Section 7 (-2) 14350 | -7/Data Miner | Acquired the access code to Warlord's prototype stash 14375 | -7/Data Miner | Received God Mode back door access code from Data Miner 14431 | -7/Data Miner | Entered Proximity Caves 15082 | -6/Proximity Caves | Discovered new exit (range 9) 15197 | -6/Proximity Caves | Entered Factory 15197 | -6/Factory | Evolved 2 slots: Utility x2 15198 | -6/Factory | Loaded intel: 100 trap records 15339 | -6/Factory | Repaired Exp. Sensor Array 15649 | -6/Factory | Build established: Skirmisher 16435 | -6/Factory | Found Unknown Protection 16435 | -6/Factory | Identified Powered Armor 17278 | -6/Factory | Joined by Warlord Dakka squad 17307 | -6/Factory | P-60 Hacker assimilated allied 0Z-UR6(s) 17343 | -6/Factory | Discovered new exit (range 13) 17473 | -6/Factory | Discovered new exit (range 4) 17478 | -6/Factory | Identified exit to Factory 18186 | -6/Factory | Discovered new exit (range 15) 18231 | -6/Factory | Build established: Gunner 18434 | -6/Factory | Entered another Factory area 18434 | -5/Factory | Evolved 2 slots: Utility x2 18810 | -5/Factory | Build established: Assassin 19209 | -5/Factory | Garrison activated, responded to threat 19246 | -5/Factory | Discovered new exit (range 7) 19278 | -5/Factory | Identified exit to Factory 19280 | -5/Factory | Destroyed 15 combat bots 19407 | -5/Factory | Cargo convoy interrupted 19459 | -5/Factory | System corruption reached 10% 19496 | -5/Factory | Lost 7 parts (4n3u) 19506 | -5/Factory | Destroyed 10 combat bots 19534 | -5/Factory | Found PL-3XN's Ring of Power 19552 | -5/Factory | Found Prototype Processor 19552 | -5/Factory | Identified Exp. Melee Analysis Suite 19555 | -5/Factory | Found Prototype Launcher 19555 | -5/Factory | Identified Point Singularity Launcher 19639 | -5/Factory | Found Point Singularity Launcher 19677 | -5/Factory | Lost 10 parts (1p6u3w) 19694 | -5/Factory | Discovered new exit (range 13) 19851 | -5/Factory | Entered Upper Caves 19867 | -5/Upper Caves | Lost 4 parts (1p1n2u) 19872 | -5/Upper Caves | Build established: Mutant 19882 | -5/Upper Caves | Learned Factory terminal intel 20457 | -5/Upper Caves | Discovered new exit (range 8) 20565 | -5/Upper Caves | Entered another Upper Caves area 20730 | -5/Upper Caves | Core integrity fell below 50% 20751 | -5/Upper Caves | Destroyed 16 combat bots 20777 | -5/Upper Caves | Build established: Derelict-Mutant 21246 | -5/Upper Caves | Encountered a Warlord checkpoint 21297 | -5/Upper Caves | Learned 12 Factory zone layouts 21315 | -5/Upper Caves | Identified exit to Warlord 21366 | -5/Upper Caves | Encountered a Master Thief 21367 | -5/Upper Caves | Encountered a Master Thief 21368 | -5/Upper Caves | Encountered a Master Thief 21369 | -5/Upper Caves | Imp. Medium Treads stolen by Master Thief 21373 | -5/Upper Caves | Graphene Brace stolen by Master Thief 21375 | -5/Upper Caves | Imp. Weapon Cycler stolen by Master Thief 21493 | -5/Upper Caves | Entered Warlord 21549 | -5/Warlord | System corruption cleaned by Quarantine Array 21854 | -5/Warlord | Opened Warlord's prototype stash 21864 | -5/Warlord | Found Prototype Reactor 21869 | -5/Warlord | Found Prototype Device 21869 | -5/Warlord | Identified Exp. Phase Shifter 21878 | -5/Warlord | Found Prototype Hackware 21878 | -5/Warlord | Identified System Mapper 21894 | -5/Warlord | Found Prototype Device 21894 | -5/Warlord | Identified Thermal Barrier 22146 | -5/Warlord | Visited the Vortex Lab 22158 | -5/Warlord | Warlord's base attacked by MAIN.C 22159 | -5/Warlord | Found Prototype Piercing Weapon 22164 | -5/Warlord | Found Prototype Launcher 22167 | -5/Warlord | Found Prototype Piercing Weapon 22176 | -5/Warlord | Identified Vortex Catalyst Activator 22258 | -5/Warlord | Build established: Hacker-Tank 22393 | -5/Warlord | Met Warlord 22508 | -5/Warlord | Warlord forces counterattacked 22583 | -5/Warlord | Lost 3 allies 22658 | -5/Warlord | Spotted Striker 22659 | -5/Warlord | Spotted Striker 22698 | -5/Warlord | Identified Vortex Lance (x2) 22710 | -5/Warlord | Discovered new exit (range 12) 22717 | -5/Warlord | Lost 8 allies 22727 | -5/Warlord | Entered Proximity Caves 22943 | -4/Proximity Caves | Spotter reported a threat 23025 | -4/Proximity Caves | Spotter reported a threat 23299 | -4/Proximity Caves | Build established: Hacker-Gunner 23335 | -4/Proximity Caves | Discovered exit to Factory (range 3) 23340 | -4/Proximity Caves | Entered Factory 23340 | -4/Factory | Evolved 2 slots: Power x1, Propulsion x1 23341 | -4/Factory | Identified exit to Armory 23342 | -4/Factory | Loaded intel: 25 terminal locations 23590 | -4/Factory | Search patrols dispatched 23637 | -4/Factory | Build established: Hacker-Skirmisher 23779 | -4/Factory | Repaired Imp. Weapon Cycler 24275 | -4/Factory | Entered Armory 24304 | -4/Armory | Lost 4 parts (2n1u1w) 24531 | -4/Armory | Identified Vortex Chain Reactor 24588 | -4/Armory | Spotted B-86 Titan 24611 | -4/Armory | Destroyed B-86 Titan 24614 | -4/Armory | Lost 3 allies 24634 | -4/Armory | Lost 5 parts (2n3u) 24773 | -4/Armory | Found Gamma Bomb Array 25028 | -4/Armory | Destroyed 11 combat bots 25174 | -4/Armory | Destroyed 9 combat bots 25179 | -4/Armory | Lost 12 parts (1p6n2u3w) 25240 | -4/Armory | Lost 3 parts (1p1n1w) 25240 | -4/Armory | Core integrity fell below 50% 25339 | -4/Armory | Found Gamma Bomb Array 25347 | -4/Armory | Found Gamma Bomb Array 25350 | -4/Armory | Found Gamma Bomb Array 25353 | -4/Armory | Found Gamma Bomb Array 25357 | -4/Armory | Found Gamma Bomb Array 25393 | -4/Armory | Build established: Hacker-Mutant 25525 | -4/Armory | First assault squad dispatched 25551 | -4/Armory | Incoming assault squad redirected 25591 | -4/Armory | System corruption reached 10% 25605 | -4/Armory | System corruption reached 30% 26034 | -4/Armory | Discovered new exit (range 5) 26320 | -4/Armory | Entered Lab 26320 | -4/Lab | Discovered new exit (range 9) 26335 | -4/Lab | Unable to decrypt terminal 26340 | -4/Lab | Entered Research 26340 | -3/Research | Evolved 2 slots: Propulsion x1, Utility x1 26729 | -3/Research | Build established: Scavenger-Gladiator 27215 | -3/Research | Found Prototype Device 27215 | -3/Research | Identified Exp. EM Disruption Field 27749 | -3/Research | Cargo convoy interrupted 27750 | -3/Research | Spotted Executioner 27750 | -3/Research | Spotted Striker 27771 | -3/Research | Incoming assault squad redirected 27771 | -3/Research | Destroyed Striker 27791 | -3/Research | Destroyed Executioner 27811 | -3/Research | Lost 7 parts (1p5n1u) 27814 | -3/Research | Destroyed 9 combat bots 27840 | -3/Research | First assault squad dispatched 28218 | -3/Research | Repaired Centrium Leg 28291 | -3/Research | Lost 5 parts (1p2n1u1w) 28422 | -3/Research | Discovered new exit (range 15) 28462 | -3/Research | Core integrity fell below 50% 28469 | -3/Research | Entered another Research area 28469 | -2/Research | Warlord forces began assault on 0b10 28469 | -2/Research | Evolved 2 slots: Utility x2 28494 | -2/Research | Distinguished unit "Cat Herders" dispatched to help 28494 | -2/Research | Distinguished unit "Railsplitters" dispatched to help 28518 | -2/Research | Lost 7 parts (5n1u1w) 28542 | -2/Research | Lost 4 allies 28579 | -2/Research | Research machine network offline 28641 | -2/Research | Lost 3 allies 28844 | -2/Research | Borebot progress halted 28969 | -2/Research | Found Fusion Bomb Launcher 28987 | -2/Research | Borebot progress halted 28988 | -2/Research | Found Prototype Launcher 28988 | -2/Research | Identified Enh. Gamma Bomb Array 29135 | -2/Research | Found Enh. Gamma Bomb Array 29169 | -2/Research | Borebot progress halted 29225 | -2/Research | Spotted Striker 29225 | -2/Research | Spotted Striker 29263 | -2/Research | Spotted Executioner 29264 | -2/Research | Discovered new exit (range 11) 29283 | -2/Research | Destroyed Executioner 29292 | -2/Research | Identified exit to Access 29310 | -2/Research | Lost 11 allies 29407 | -2/Research | Build established: Scavenger-Tank 29426 | -2/Research | Spotted Striker 29431 | -2/Research | Spotted Executioner 29435 | -2/Research | Spotted Executioner 29450 | -2/Research | Destroyed Executioner 29461 | -2/Research | Destroyed Executioner 29473 | -2/Research | Lost 6 allies 29531 | -2/Research | Lost 5 allies 29720 | -2/Research | Discovered exit to Access (range 15) 29971 | -2/Research | Given Cave Seal Controls access code 30010 | -2/Research | Entered Access 30010 | -1/Access | Evolved 2 slots: Utility x1, Weapon x1 30296 | -1/Access | Build established: Scavenger-Assassin 30631 | -1/Access | Build established: Tank 30678 | -1/Access | Destroyed 7 combat bots 31099 | -1/Access | Build established: Scavenger-Tank 31251 | -1/Access | System corruption reached 10% 31260 | -1/Access | First assault squad dispatched 31673 | -1/Access | Destroyed 10 combat bots 32051 | -1/Access | Destroyed 8 combat bots 32793 | -1/Access | Build established: Scavenger-Skirmisher 32895 | -1/Access | High security lockdown imminent 32975 | -1/Access | High security lockdown engaged 33180 | -1/Access | Build established: Scavenger-Tank 33193 | -1/Access | Destroyed 17 combat bots 33235 | -1/Access | Spotted Investigator 33236 | -1/Access | Destroyed Investigator 33240 | -1/Access | Destroyed Striker 33269 | -1/Access | Destroyed 7 combat bots 33328 | -1/Access | Spotted Executioner 33328 | -1/Access | Spotted Executioner 33328 | -1/Access | Spotted Striker 33332 | -1/Access | Destroyed Striker 33333 | -1/Access | Destroyed Executioner 33335 | -1/Access | Destroyed Executioner 33422 | -1/Access | Spotted Executioner 33442 | -1/Access | Destroyed Executioner 33463 | -1/Access | Destroyed 8 combat bots 33469 | -1/Access | Spotted Executioner 33469 | -1/Access | Spotted Striker 33469 | -1/Access | Spotted Striker 33478 | -1/Access | Spotted Striker 33478 | -1/Access | Spotted Striker 33478 | -1/Access | Spotted Striker 33478 | -1/Access | Spotted Striker 33482 | -1/Access | Destroyed Striker 33482 | -1/Access | Destroyed Striker 33488 | -1/Access | Destroyed Striker 33493 | -1/Access | System corruption reached 30% 33498 | -1/Access | Sterilization system engaged 33507 | -1/Access | Destroyed Striker 33511 | -1/Access | Destroyed Striker 33515 | -1/Access | Destroyed Striker 33517 | -1/Access | Destroyed Executioner 33528 | -1/Access | Lost 7 parts (2p1n3u1w) 33538 | -1/Access | Destroyed 15 combat bots 33613 | -1/Access | Spotted Executioner 33613 | -1/Access | Spotted Striker 33617 | -1/Access | Spotted Striker 33617 | -1/Access | Destroyed Striker 33620 | -1/Access | Spotted Executioner 33620 | -1/Access | Spotted Striker 33622 | -1/Access | Spotted Executioner 33622 | -1/Access | Spotted Striker 33622 | -1/Access | Destroyed Executioner 33622 | -1/Access | Destroyed Executioner 33628 | -1/Access | Destroyed Executioner 33639 | -1/Access | Destroyed Striker 33657 | -1/Access | Destroyed Striker 33682 | -1/Access | Core integrity fell below 50% 33685 | -1/Access | Destroyed 12 combat bots 33687 | -1/Access | Spotted Investigator 33689 | -1/Access | Scanned by Researcher 33701 | -1/Access | Spotted Striker 33721 | -1/Access | Destroyed Striker 33723 | -1/Access | Crushed by falling debris 33735 | -1/Access | Crushed by falling debris 33747 | -1/Access | Destroyed 15 combat bots 33748 | -1/Access | Destroyed Investigator 33759 | -1/Access | Crushed by falling debris 33766 | -1/Access | Lost 24 parts (3p4n10u7w) 33798 | -1/Access | Ambient heat levels rising (+10) 33926 | -1/Access | Lost 4 parts (3n1u) 33948 | -1/Access | Ambient heat levels rising (+10) 33994 | -1/Access | Core integrity fell below 20% 34098 | -1/Access | Ambient heat levels rising (+10) 34149 | -1/Access | Spotted B-99 Colossus 34163 | -1/Access | Build established: Mutant 34248 | -1/Access | Ambient heat levels rising (+10) 34291 | -1/Access | Found Unknown Launcher 34350 | -1/Access | Identified Gamma Bomb Array 34398 | -1/Access | Ambient heat levels rising (+10) 34464 | -1/Access | Destroyed Striker 34548 | -1/Access | Ambient heat levels rising (+10) 34698 | -1/Access | Ambient heat levels rising (+10) 34848 | -1/Access | Ambient heat levels rising (+10) 34878 | -1/Access | Discovered new exit (range 5) 34897 | -1/Access | Spotted B-99 Colossus 34897 | -1/Access | Spotted B-99 Colossus 34909 | -1/Access | Identified exit to Surface 34981 | -1/Access | Build established: Scavenger-Skirmisher 34998 | -1/Access | Ambient heat levels rising (+10) 35148 | -1/Access | Ambient heat levels rising (+10) 35153 | -1/Access | Destroyed B-99 Colossus 35298 | -1/Access | Ambient heat levels rising (+10) 35302 | *** | Escaped! Last Messages --------------- 35038_ ISCGD3EQWMPS P ,:Y&L> 35053_ System corrupted: Heat flow error (+218). 35068_ MQPVWGFZQI OQBKUI7J&IJL&&IS= EO 35115_ System corrupted: Component data lost. 35146_ System corrupted: Substantial component data lost. 35148_ ALERT: Ambient heat levels +10. 35161_ System corrupted: Matter fused (-9). 35176_ BAW&KSOJPXYZY HAZUFY57:5MW3GCJ 35192_ System corrupted: Matter fused (-6). 35208_ System corrupted: Matter fused (-8). 35242_ #GH:R9